bitfinex/quotes_ETHUSD_20250808
["timestamp","ask_amount","ask_price","bid_price","bid_amount"]
[1754685720261,3.76,4052.4,4052.1,3.1232]
[1754685720463,4.189,4052.4,4052.1,3.1232]
[1754685720666,0.9256,4052.3,4052.1,3.1232]
[1754685721059,0.429,4052.2,4052.1,3.1232]
[1754685721755,3.76,4052.4,4052.1,3.1232]
[1754685722276,4.189,4052.4,4052.1,3.1232]
[1754685722480,3.76,4052.4,4052.1,3.1232]
[1754685722781,4.189,4052.4,4052.1,3.1232]
[1754685723206,0.429,4052.4,4052.1,3.1232]
[1754685723493,3.76,4052.3,4052.1,3.1232]
[1754685723696,3.76,4052.2,4052.1,0.1232]
[1754685724481,0.5522,4052.7,4052.1,0.1232]
[1754685724482,3.76,4052.4,4052.1,10.86842184]
[1754685724693,3.76,4052.4,4052.2,0.9136]
[1754685724981,3.76,4052.4,4052.3,0.9136]
[1754685727081,3.76,4052.4,4052.3,0.4798]
[1754685727679,3.76,4052.4,4052.1,0.1232]
[1754685728063,4.189,4052.4,4052.1,0.1232]
[1754685728458,3.76,4052.4,4052.1,0.1232]
[1754685728781,0.429,4052.3,4052.1,0.1232]
[1754685728990,3.76,4052.4,4052.1,0.1232]
[1754685730083,0.9256,4052.3,4052.1,0.1232]
[1754685730583,0.429,4052.2,4052.1,0.1232]
[1754685732274,3.76,4052.4,4052.1,0.1232]
[1754685732770,4.189,4052.4,4052.1,0.1232]
[1754685734089,0.429,4052.3,4052.1,0.1232]
[1754685734891,0.429,4052.2,4052.0,0.001]
[1754685735261,0.4966,4052.3,4052.0,0.001]
[1754685735262,0.429,4052.1,4052.0,0.001]
[1754685738194,3.76,4052.4,4052.0,0.001]
[1754685738398,0.429,4052.4,4052.0,0.001]
[1754685738571,3.759,4052.3,4052.0,0.001]
[1754685740895,3.759,4052.3,4052.0,0.4808]
[1754685741100,0.002,4052.8,4052.2,9.83162184]
[1754685741394,3.759,4052.7,4052.3,3.02467734]
[1754685741595,0.002,4052.8,4052.3,3.02467734]
[1754685741899,3.759,4052.7,4052.4,0.9136]
[1754685742093,3.759,4052.7,4052.3,4.08902818]
[1754685742293,3.759,4052.7,4052.5,0.4798]
[1754685743300,3.759,4052.7,4052.3,3.0]
[1754685743502,3.759,4052.7,4052.3,3.4798]
[1754685743799,3.759,4052.7,4052.3,0.4798]
[1754685744100,3.759,4052.7,4052.4,0.9136]
[1754685744270,3.759,4052.7,4052.5,1.37452218]
[1754685744472,3.759,4052.7,4052.5,1.83332218]
[1754685745302,3.759,4052.7,4052.5,0.4588]
[1754685745594,3.759,4052.7,4052.4,3.0]
[1754685746392,3.759,4052.7,4052.4,3.4588]
[1754685747787,3.759,4052.7,4052.4,3.0]
[1754685748286,3.759,4052.7,4052.1,0.4588]
[1754685748488,3.759,4052.7,4052.2,1.37446218]
[1754685748691,3.759,4052.7,4052.2,1.83326218]
[1754685749007,4.206,4052.7,4052.2,1.83326218]
[1754685749895,3.759,4052.7,4052.2,1.83326218]
[1754685750278,0.002,4052.8,4052.3,0.4588]
[1754685750480,0.002,4052.8,4052.4,0.22854622]
[1754685750881,0.002,4052.8,4052.4,0.68734622]
[1754685751200,0.002,4052.8,4052.6,0.1232]
[1754685752477,0.002,4052.8,4052.7,13.86582184]
[1754685753503,0.002,4052.8,4052.7,3.582]
[1754685753706,0.002,4052.8,4052.7,3.1232]
[1754685758579,0.002,4052.8,4052.7,3.582]
[1754685758806,0.002,4052.8,4052.7,4.0342]
[1754685759613,0.002,4052.8,4052.7,3.582]
[1754685761211,0.002,4052.8,4052.7,4.0342]
[1754685761615,0.002,4052.8,4052.7,3.582]
[1754685761911,0.002,4052.8,4052.7,3.1232]
[1754685764686,0.002,4052.8,4052.7,5.5906908]
[1754685764927,0.002,4052.8,4052.7,9.89869079]
[1754685766712,0.002,4052.8,4052.7,10.35749079]
[1754685767522,0.002,4052.8,4052.7,14.11549079]
[1754685768516,0.002,4052.8,4052.7,14.56769079]
[1754685776523,0.002,4052.8,4052.7,14.11549079]
[1754685777735,0.002,4052.8,4052.7,14.58219079]
[1754685779811,0.002,4052.8,4052.7,14.11549079]
[1754685782929,1e-08,4052.9,4052.8,6.01742992]
[1754685783129,1e-08,4052.9,4052.8,15.84905176]
[1754685783329,0.002,4053.6,4053.2,0.55]
[1754685783535,0.002,4053.6,4053.4,15.315982]
[1754685783699,0.002,4053.6,4053.3,20.38741863]
[1754685783700,0.002,4053.6,4053.5,21.85877603]
[1754685783902,0.002,4053.6,4053.5,24.30110982]
[1754685784106,0.002,4053.6,4053.5,25.32536882]
[1754685784700,0.002,4053.6,4053.5,31.70234682]
[1754685784901,0.002,4053.6,4053.5,28.78282782]
[1754685785198,0.002,4053.6,4053.5,22.68926582]
[1754685785397,0.002,4053.6,4053.5,10.92046282]
[1754685788012,0.002,4053.6,4053.5,30.24483281]
[1754685788213,0.002,4053.6,4053.5,45.22846281]
[1754685788516,0.002,4053.6,4053.5,42.31378981]
[1754685788744,0.002,4053.6,4053.5,15.22846281]
[1754685789171,0.002,4053.6,4053.5,41.63734281]
[1754685789371,1e-08,4053.8,4053.6,6.01694296]
[1754685789565,1e-08,4053.8,4053.7,52.74664175]
[1754685789767,0.002,4054.1,4053.7,52.74664175]
[1754685789768,1e-08,4054.2,4054.1,0.55]
[1754685790079,1e-08,4054.2,4054.1,50.73279689]
[1754685790238,1e-08,4054.2,4054.1,50.83133051]
[1754685790437,1e-08,4054.2,4054.1,51.75683051]
[1754685790637,1e-08,4054.2,4054.1,47.91622251]
[1754685790864,1e-08,4054.2,4054.1,46.18687651]
[1754685791176,1e-08,4054.2,4054.1,43.84209651]
[1754685793671,1e-08,4054.2,4054.1,39.44330751]
[1754685794580,1e-08,4054.2,4054.1,40.92530751]
[1754685794752,1e-08,4054.2,4054.1,45.2333075]
[1754685795134,1e-08,4054.2,4054.1,43.5456085]
[1754685795337,1e-08,4054.2,4054.1,27.7710465]
[1754685795568,1e-08,4054.2,4054.1,31.3754295]
[1754685795768,1e-08,4054.2,4054.1,32.3009295]
[1754685797240,1e-08,4054.2,4054.1,31.8342295]
[1754685797436,1e-08,4054.2,4054.1,4.16710867]
[1754685797692,1e-08,4054.2,4054.1,11.10135767]
[1754685797973,0.002,4055.5,4055.4,2.465848]
[1754685798141,0.002,4055.5,4055.4,9.4664328]
[1754685798478,0.002,4055.5,4055.4,9.5896328]
[1754685798652,0.9455,4055.5,4055.4,9.5896328]
[1754685801377,0.4744,4055.5,4055.4,9.5896328]
[1754685803879,0.002,4055.5,4055.4,11.6216328]
[1754685804090,0.002,4055.5,4055.4,11.0602328]
[1754685804760,0.002,4055.5,4055.4,11.5346328]
[1754685805857,0.002,4055.5,4055.4,10.6140328]
[1754685807861,0.002,4055.5,4055.4,11.5342328]
[1754685808061,0.002,4055.5,4055.4,10.6140328]
[1754685808375,0.4403,4055.5,4055.4,3.5976]
[1754685808597,0.9117,4055.5,4055.4,6.8762]
[1754685810692,0.9117,4055.5,4055.4,9.342048]
[1754685811562,0.9117,4055.5,4055.4,6.8762]
[1754685812156,0.9117,4055.5,4055.4,9.342048]
[1754685812350,0.002,4055.5,4055.4,9.342048]
[1754685812765,0.4403,4055.5,4055.4,9.342048]
[1754685814383,0.002,4055.5,4055.4,9.342048]
[1754685815056,0.002,4055.5,4055.4,11.08128622]
[1754685815273,0.002,4055.5,4055.4,15.38928621]
[1754685815474,0.002,4055.5,4055.4,14.92748621]
[1754685815760,0.002,4055.5,4055.4,14.46908621]
[1754685816160,0.002,4055.5,4055.4,14.92748621]
[1754685816560,0.002,4055.5,4055.4,33.04029821]
[1754685816761,0.002,4055.5,4055.4,31.61043721]
[1754685816963,0.002,4055.5,4055.4,29.58475321]
[1754685817554,0.002,4055.5,4055.4,30.16418121]
[1754685818074,0.002,4055.5,4055.4,19.23792021]
[1754685818278,0.002,4055.5,4055.4,17.69294421]
[1754685818787,0.002,4055.5,4055.4,18.16434421]
[1754685818985,0.002,4055.5,4055.4,19.71285321]
[1754685819490,0.002,4055.5,4055.4,23.57757521]
[1754685819675,0.002,4055.5,4055.4,21.44327021]
[1754685819994,0.002,4055.5,4055.4,20.73064221]
[1754685820190,0.002,4055.5,4055.4,21.12063221]
[1754685820385,0.002,4055.5,4055.4,22.32598621]
[1754685820685,0.002,4055.5,4055.4,21.75056721]
[1754685820892,0.002,4055.5,4055.4,20.25056721]
[1754685821191,0.002,4055.5,4055.4,22.22659721]
[1754685821397,0.002,4055.5,4055.4,21.75056721]
[1754685821565,0.002,4055.5,4055.4,20.25056721]
[1754685821915,0.002,4055.5,4055.4,21.53612021]
[1754685822269,0.002,4055.5,4055.4,20.25056721]
[1754685823163,0.002,4055.5,4055.4,20.80056721]
[1754685823358,0.002,4055.5,4055.4,21.26236721]
[1754685823960,0.002,4055.5,4055.4,20.80056721]
[1754685824192,0.002,4055.5,4055.4,20.84648721]
[1754685825265,0.002,4055.5,4055.4,27.35227221]
[1754685825467,0.002,4055.5,4055.4,27.81407221]
[1754685826289,0.002,4055.5,4055.4,25.80068121]
[1754685826499,0.002,4055.5,4055.4,23.88436921]
[1754685826998,0.002,4055.5,4055.4,20.56686421]
[1754685827166,0.002,4055.5,4055.4,20.01432221]
[1754685827362,0.9117,4055.5,4055.4,11.18748621]
[1754685827570,0.9117,4055.5,4055.4,14.94048621]
[1754685827763,0.9117,4055.5,4055.4,14.46908621]
[1754685827996,0.9117,4055.5,4055.4,13.65004799]
[1754685828679,0.002,4055.5,4055.4,13.65004799]
[1754685831487,0.002,4055.5,4055.4,23.94006983]
[1754685831685,0.002,4055.5,4055.4,24.40186983]
[1754685832395,0.002,4055.5,4055.4,24.87526983]
[1754685832899,0.002,4055.5,4055.4,23.95506983]
[1754685833382,0.002,4055.5,4055.4,10.37044799]
[1754685833588,0.4403,4055.5,4055.4,14.12544799]
[1754685833903,0.4403,4055.5,4055.4,13.65204799]
[1754685834276,0.002,4055.5,4055.4,13.65204799]
[1754685835184,1e-08,4055.5,4055.4,24.03366983]
[1754685835388,1e-08,4055.5,4055.4,29.51242483]
[1754685836694,1e-08,4055.5,4055.4,29.07852483]
[1754685836876,1e-08,4055.5,4055.4,29.51242483]
[1754685837705,1e-08,4055.5,4055.4,30.10742483]
[1754685837905,1e-08,4055.5,4055.4,30.99442483]
[1754685838112,1e-08,4055.5,4055.4,30.20676983]
[1754685838273,1e-08,4055.5,4055.4,24.18146683]
[1754685838475,1e-08,4055.5,4055.4,23.48166983]
[1754685838702,1e-08,4055.5,4055.4,27.43077483]
[1754685838874,1e-08,4055.5,4055.4,26.56563183]
[1754685839075,1e-08,4055.5,4055.4,22.81263183]
[1754685839405,1e-08,4055.5,4055.4,28.59763183]
[1754685839702,1e-08,4055.5,4055.4,24.03166983]
[1754685840575,1e-08,4055.5,4055.4,27.13365283]
[1754685840975,1e-08,4055.5,4055.4,27.58675283]
[1754685842404,1e-08,4055.5,4055.4,20.27866983]
[1754685842609,1e-08,4055.5,4055.4,28.19913683]
[1754685842804,1e-08,4055.5,4055.4,24.03566983]
[1754685843009,1e-08,4055.5,4055.4,27.08680983]
[1754685844111,1e-08,4055.5,4055.4,27.53990983]
[1754685844281,1e-08,4055.5,4055.4,27.97380983]
[1754685848184,1e-08,4055.5,4055.4,29.45580983]
[1754685848384,1e-08,4055.5,4055.4,14.98018799]
[1754685848591,1e-08,4055.5,4055.4,29.03320983]
[1754685849139,1e-08,4055.5,4055.4,29.01990983]
[1754685849445,1e-08,4056.0,4055.9,2.46554402]
[1754685849646,1e-08,4056.0,4055.9,20.42193762]
[1754685849934,1e-08,4056.0,4055.9,20.52048218]
[1754685850133,1e-08,4056.0,4055.9,49.21367518]
[1754685850336,1e-08,4056.0,4055.9,50.97358218]
[1754685850544,1e-08,4056.0,4055.9,51.40748218]
[1754685850930,1e-08,4056.0,4055.9,50.82925618]
[1754685851637,1e-08,4056.0,4055.9,50.60720618]
[1754685853350,1e-08,4056.4,4056.3,15.84692272]
[1754685853509,1e-08,4056.4,4056.3,37.63495257]
[1754685853933,0.92630001,4056.4,4056.3,10.90409273]
[1754685854115,0.92630001,4056.4,4056.3,14.66309273]
[1754685854323,0.92630001,4056.4,4056.3,14.78629273]
[1754685855633,0.92630001,4056.4,4056.3,11.02729273]
[1754685855946,0.92630001,4056.4,4056.3,14.78629273]
[1754685856844,0.92630001,4056.4,4056.3,5.58850088]
[1754685857011,0.92630001,4056.4,4056.3,9.34750088]
[1754685862344,1e-08,4056.4,4056.3,9.34750088]
[1754685862653,1e-08,4056.4,4056.3,13.65550087]
[1754685862848,0.46640001,4056.4,4056.3,13.65550087]
[1754685863053,0.46640001,4056.4,4056.3,15.26758856]
[1754685863543,0.92630001,4056.4,4056.3,15.26758856]
[1754685863943,0.92630001,4056.4,4056.3,13.65350087]
[1754685864161,0.92630001,4056.4,4056.3,13.65250087]
[1754685865448,1e-08,4056.4,4056.3,13.65250087]
[1754685865633,0.91570001,4056.4,4056.3,13.65250087]
[1754685866026,0.45690001,4056.4,4056.3,13.65250087]
[1754685867821,0.91570001,4056.4,4056.3,13.65250087]
[1754685868028,1e-08,4056.4,4056.3,13.65250087]
[1754685868928,1e-08,4056.4,4056.3,15.31069856]
[1754685869325,1e-08,4056.4,4056.3,11.00269857]
[1754685871269,1e-08,4056.4,4056.3,9.34550088]
[1754685872368,0.45690001,4056.4,4056.3,9.34550088]
[1754685874549,1e-08,4056.4,4056.3,9.34550088]
[1754685874771,0.45690001,4056.4,4056.3,9.34550088]
[1754685874933,0.91570001,4056.4,4056.3,0.1242]
[1754685875139,13.21256196,4056.4,4056.3,0.001]
[1754685875377,14.90353004,4056.4,4056.3,0.001]
[1754685876040,12.43828993,4056.4,4056.3,0.001]
[1754685876675,14.90353004,4056.4,4056.3,0.001]
[1754685877338,12.43828993,4056.4,4056.3,0.001]
[1754685877539,14.90353004,4056.4,4056.3,0.001]
[1754685877867,12.43828993,4056.4,4056.3,0.001]
[1754685878459,14.90353004,4056.4,4056.3,0.001]
[1754685878655,12.43828993,4056.4,4056.3,0.001]
[1754685878862,14.90353004,4056.4,4056.3,0.001]
[1754685879383,12.43828993,4056.4,4056.3,0.001]
[1754685880275,16.19128993,4056.4,4056.3,0.001]
[1754685880494,18.65653004,4056.4,4056.3,0.001]
[1754685885388,8.8249082,4056.4,4056.3,0.001]
[1754685888362,6.35966809,4056.4,4056.3,0.001]
[1754685888561,3.87620001,4056.4,4056.3,0.001]
[1754685889062,4.33310001,4056.4,4056.3,0.001]
[1754685889778,7.25714012,4056.4,4056.3,0.001]
[1754685893004,7.80714012,4056.4,4056.3,0.001]
[1754685894581,8.33494778,4056.4,4056.3,0.001]
[1754685894994,10.39811806,4056.4,4056.3,0.001]
[1754685895196,19.70193224,4056.4,4056.3,0.001]
[1754685895596,8.4046104,4056.4,4056.3,0.001]
[1754685895798,0.12320001,4056.4,4056.3,0.001]
[1754685896001,6.34144012,4056.4,4056.3,0.001]
[1754685896378,6.78634012,4056.4,4056.3,0.001]
[1754685898120,3.87620001,4056.4,4055.8,0.00051117]
[1754685898342,0.1232,4056.1,4055.9,0.4487]
[1754685898496,3.754,4056.1,4055.9,2.91422311]
[1754685898691,3.754,4056.1,4056.0,0.4763]
[1754685899036,3.754,4056.1,4056.0,3.39048323]
[1754685901219,1e-08,4056.4,4056.2,2.46536166]
[1754685901435,3.753,4056.3,4056.2,2.46536166]
[1754685901923,3.753,4056.3,4056.2,3.39036166]
[1754685904796,1e-08,4056.4,4056.3,2.46530088]
[1754685904990,1e-08,4056.4,4056.3,3.39030088]
[1754685905450,1e-08,4056.4,4056.3,6.39030088]
[1754685908166,1e-08,4056.4,4056.3,5.46530088]
[1754685908465,0.44490001,4056.4,4056.0,0.1232]
[1754685908756,0.44490001,4056.4,4055.8,5.58931411]
[1754685908973,0.44490001,4056.4,4055.8,2.58931411]
[1754685909177,0.44490001,4056.4,4056.0,2.46543669]
[1754685909577,0.44490001,4056.4,4055.8,2.58931411]
[1754685909772,1e-08,4056.4,4056.0,0.4763]
[1754685910146,0.44490001,4056.4,4056.0,2.46546062]
[1754685910804,0.4449,4056.3,4056.0,2.46546062]
[1754685911274,1e-08,4056.4,4055.9,5.46552708]
[1754685911479,1e-08,4056.4,4055.8,0.12371117]
[1754685911480,2.46554402,4055.9,4055.8,0.12371117]
[1754685911688,4.7909,4055.9,4055.8,0.00051117]
[1754685911851,7.25644402,4055.9,4055.8,0.00051117]
[1754685912168,6.78664402,4055.9,4055.8,0.00051117]
[1754685912365,8.69501423,4055.9,4055.8,0.00051117]
[1754685913671,9.16481423,4055.9,4055.8,0.00051117]
[1754685915588,18.99643607,4055.9,4055.8,0.00051117]
[1754685918475,1e-08,4056.4,4055.8,13.63704301]
[1754685918676,0.002,4057.3,4057.2,2.46475401]
[1754685918868,0.002,4057.3,4057.2,5.46475401]
[1754685919185,3.783,4059.1,4057.3,0.55]
[1754685919384,2.92963112,4059.9,4058.2,3.0]
[1754685919687,3.796,4059.9,4058.4,3.0]
[1754685919886,3.796,4059.9,4059.5,2.46335503]
[1754685920093,3.796,4059.9,4058.8,3.0]
[1754685920094,0.4449,4059.8,4059.6,0.23007621]
[1754685920391,0.91899,4059.7,4059.4,2.46341739]
[1754685920591,0.91899,4059.7,4059.6,2.46329687]
[1754685920765,0.47409,4059.7,4059.6,2.69294245]
[1754685922277,0.91899,4059.7,4059.6,0.22964558]
[1754685922477,0.91899,4059.7,4059.6,2.69294245]
[1754685923192,0.47409,4059.7,4059.6,2.69294245]
[1754685924367,3.796,4059.9,4059.6,2.69294245]
[1754685924702,4.2265,4059.9,4059.6,2.46329687]
[1754685925900,3.796,4059.9,4059.4,0.739828]
[1754685926106,3.796,4059.9,4059.8,2.46317552]
[1754685926592,3.796,4059.9,4059.4,0.739828]
[1754685926771,3.796,4059.9,4059.5,2.69192983]
[1754685926977,0.4305,4059.8,4059.6,0.22858579]
[1754685927173,0.8871,4059.7,4059.1,0.739865]
[1754685927483,4.2205,4059.6,4058.3,3.4427]
[1754685927684,0.4305,4059.5,4058.7,3.0]
[1754685927891,0.4305,4059.5,4058.5,3.0]
[1754685927892,0.8871,4059.5,4058.8,2.69233446]
[1754685928087,0.8871,4059.5,4058.9,0.22855336]
[1754685928276,0.47265,4059.8,4059.0,0.22855336]
[1754685928481,3.79,4059.7,4059.6,2.46329687]
[1754685928917,3.9132,4059.7,4059.5,2.46334246]
[1754685929073,0.1232,4059.7,4059.6,2.46329687]
[1754685929273,0.1232,4059.7,4059.6,3.17780473]
[1754685929490,0.5,4060.0,4059.9,2.46311485]
[1754685929819,0.5,4060.0,4059.9,3.84620414]
[1754685929981,1e-08,4060.0,4059.9,7.92283528]
[1754685930298,1e-08,4060.0,4059.9,7.89820414]
[1754685931074,1e-08,4060.0,4059.9,11.69620414]
[1754685933805,1e-08,4060.0,4059.9,11.57300414]
[1754685934199,1e-08,4060.0,4059.9,12.12300414]
[1754685934704,1e-08,4060.0,4059.9,12.12100414]
[1754685935510,1e-08,4060.0,4059.9,8.32500414]
[1754685935676,1e-08,4060.0,4059.9,12.12100414]
[1754685936081,1e-08,4060.0,4059.9,12.12013494]
[1754685937795,1e-08,4060.0,4059.9,12.11813494]
[1754685939183,1e-08,4060.0,4059.9,12.21673194]
[1754685939419,1e-08,4060.0,4059.9,16.52673194]
[1754685939581,1e-08,4060.0,4059.9,11.25393194]
[1754685939786,1e-08,4060.0,4059.9,15.9755511]
[1754685940221,1e-08,4060.0,4059.9,15.5328511]
[1754685940409,1e-08,4060.0,4059.9,15.5318511]
[1754685940608,1e-08,4060.0,4059.9,15.9745511]
[1754685940990,1e-08,4060.0,4059.9,15.0457511]
[1754685941915,1e-08,4060.0,4059.9,11.2537511]
[1754685942090,1e-08,4060.0,4059.9,15.0457511]
[1754685942620,1e-08,4060.0,4059.9,11.2537511]
[1754685942994,0.43050001,4060.0,4059.9,6.58006967]
[1754685943208,0.43050001,4060.0,4059.9,0.32595482]
[1754685943820,2.89355419,4060.0,4059.9,0.22735782]
[1754685943987,2.89355419,4060.0,4059.0,2.46465308]
[1754685943988,2.46349359,4059.3,4059.0,0.001]
[1754685944319,3.63961704,4059.9,4059.0,0.001]
[1754685944525,0.4305,4059.5,4059.0,0.001]
[1754685944728,0.4305,4059.2,4059.0,0.001]
[1754685945221,4.54795542,4059.9,4059.0,0.001]
[1754685945222,2.46343374,4059.4,4059.0,0.001]
[1754685945720,2.89399571,4059.3,4059.0,0.001]
[1754685946019,2.8939811,4059.3,4059.0,0.001]
[1754685946197,2.46343645,4059.4,4059.0,0.001]
[1754685946394,0.4305,4059.2,4059.0,0.001]
[1754685946791,2.46343645,4059.4,4059.0,0.001]
[1754685946992,0.4305,4059.5,4059.0,0.001]
[1754685947207,0.4566,4059.6,4059.0,0.001]
[1754685947518,0.4305,4059.3,4059.0,0.001]
[1754685947934,0.4305,4059.2,4059.0,0.001]
[1754685948287,0.29198668,4059.5,4059.0,0.001]
[1754685948492,0.4305,4060.4,4059.2,3.0]
[1754685948793,0.4305,4060.4,4059.9,2.46311485]
[1754685948995,0.002,4060.5,4059.9,2.48774599]
[1754685949195,0.002,4060.5,4059.9,7.18701038]
[1754685949434,0.002,4060.5,4059.9,6.74431038]
[1754685949736,0.002,4060.5,4059.9,18.60845638]
[1754685950030,0.002,4060.5,4059.9,7.73701038]
[1754685950291,0.002,4060.5,4060.4,2.46281154]
[1754685950732,0.002,4060.5,4060.4,2.94891154]
[1754685951304,0.002,4060.5,4060.4,3.91466187]
[1754685951713,0.002,4060.5,4060.4,4.01326087]
[1754685951910,0.002,4060.9,4060.8,2.46256895]
[1754685952112,1.77754056,4062.7,4061.0,2.032]
[1754685952313,1.32094056,4062.7,4062.6,2.46147787]
[1754685952513,0.4305,4063.5,4063.4,2.46099325]
[1754685953606,0.52671351,4064.5,4063.4,2.46099325]
[1754685953920,0.4566,4064.2,4063.8,2.46075102]
[1754685954135,0.5537,4064.1,4063.6,0.1232]
[1754685954325,0.4319,4064.0,4063.9,2.46069046]
[1754685955401,0.3819,4064.0,4063.9,2.46069046]
[1754685955604,0.1232,4064.4,4063.8,0.1232]
[1754685955922,1.28243946,4064.3,4064.2,2.46050883]
[1754685956134,12.24459458,4065.1,4064.2,0.22874596]
[1754685956301,0.1232,4064.7,4064.3,0.22874596]
[1754685956626,0.6071,4064.7,4064.4,0.22874596]
[1754685956827,0.6071,4064.7,4064.1,0.1232]
[1754685957027,0.6071,4064.7,4064.3,2.46044348]
[1754685957207,0.6071,4064.7,4064.4,0.22855806]
[1754685957408,0.4319,4064.6,4064.1,0.1232]
[1754685957609,0.4319,4064.6,4064.2,0.22842968]
[1754685957935,0.4319,4064.6,4064.1,0.1232]
[1754685957936,0.9158,4064.5,4064.3,0.22842992]
[1754685958111,1.76025946,4064.4,4063.9,2.4606664]
[1754685958316,1.32835946,4064.4,4064.0,0.22843364]
[1754685958635,1.32835946,4064.4,4064.1,0.22843364]
[1754685958933,0.4319,4064.3,4064.2,0.22843364]
[1754685959325,0.1232,4064.7,4064.2,0.22843364]
[1754685959639,0.4319,4064.6,4064.3,0.22843364]
[1754685959938,0.4319,4064.5,4063.9,2.58385549]
[1754685960111,0.4319,4064.5,4064.0,0.22827881]
[1754685960437,0.4319,4064.4,4064.1,0.35147881]
[1754685960632,0.4319,4064.3,4064.2,0.22827881]
[1754685960811,3.06732026,4064.7,4064.2,0.22827881]
[1754685961016,3.06732026,4064.7,4064.3,0.22827881]
[1754685961017,2.89217613,4064.6,4064.3,0.22827881]
[1754685961337,2.89217613,4064.6,4064.1,0.1232]
[1754685961558,0.9158,4064.5,4064.2,0.22813501]
[1754685961745,0.9158,4064.5,4064.1,0.1232]
[1754685961746,2.46038775,4064.4,4064.1,0.1232]
[1754685961909,6.26644829,4064.3,4064.2,0.22813811]
[1754685962238,6.69839772,4064.3,4063.9,0.1232]
[1754685962408,0.4319,4064.2,4064.0,0.22805391]
[1754685962612,0.4319,4064.1,4063.9,0.1232]
[1754685962808,0.4319,4064.1,4064.0,0.22805757]
[1754685963241,2.89246937,4064.1,4064.0,0.22805757]
[1754685963437,5.09353018,4064.1,4064.0,0.22805757]
[1754685963638,2.46062992,4064.0,4063.9,0.1232]
[1754685963844,3.37642992,4064.0,4063.9,0.1232]
[1754685964339,3.37642992,4064.0,4063.2,0.1232]
[1754685964340,1.039,4064.0,4063.2,0.1232]
[1754685964542,12.24459458,4063.6,4063.2,0.1232]
[1754685964845,4.7208,4063.5,4063.0,0.1232]
[1754685965047,0.1232,4063.1,4062.5,0.1232]
[1754685965252,2.20106081,4064.1,4062.5,0.1232]
[1754685965253,0.4319,4064.7,4062.7,5.46141728]
[1754685965483,2.4607125,4063.9,4062.8,0.22798591]
[1754685965653,3.834,4063.8,4063.1,2.46116721]
[1754685965847,4.2659,4063.8,4063.2,3.22798591]
[1754685966071,4.2659,4063.8,4063.3,0.22794071]
[1754685966379,4.2659,4063.8,4063.4,0.22794071]
[1754685966550,0.4319,4063.7,4063.5,0.22794071]
[1754685966749,3.834,4063.8,4063.2,2.46111108]
[1754685967062,0.4319,4063.7,4063.4,3.0]
[1754685967257,3.834,4063.8,4063.5,2.46092155]
[1754685967644,3.834,4063.8,4063.2,3.0]
[1754685967849,3.834,4063.8,4063.3,0.22788392]
[1754685968044,3.834,4063.8,4063.4,0.22788392]
[1754685968350,3.834,4063.8,4063.5,0.22788392]
[1754685968561,4.2659,4063.8,4063.2,3.0]
[1754685968756,2.46097317,4063.5,4062.7,2.46135962]
[1754685968975,0.85849,4063.7,4062.7,2.46135802]
[1754685969274,2.46095558,4063.5,4062.7,2.46135802]
[1754685969576,3.31931836,4063.7,4062.6,3.0]
[1754685969775,2.46097343,4063.5,4062.8,2.46134407]
[1754685969979,0.71071155,4063.6,4062.7,5.46140442]
[1754685969980,2.46100636,4063.4,4062.7,5.46140442]
[1754685970192,3.831,4063.3,4062.7,2.46135737]
[1754685970476,3.831,4063.3,4062.5,2.46148247]
[1754685970656,6.29210153,4063.3,4062.6,2.46145082]
[1754685970860,3.831,4063.3,4062.7,2.46140487]
[1754685971061,3.831,4063.3,4062.8,2.46134242]
[1754685971576,3.831,4063.3,4062.7,2.46140366]
[1754685971782,0.4319,4063.2,4062.4,3.0]
[1754685972083,0.4319,4063.2,4062.6,2.46142983]
[1754685972859,2.89302515,4063.2,4062.5,2.46152538]
[1754685973064,0.4319,4063.2,4062.4,3.0]
[1754685973464,2.46117496,4063.1,4062.4,5.46155743]
[1754685973761,0.6724075,4063.1,4061.8,0.4855]
[1754685973988,0.4319,4063.0,4062.2,2.46169097]
[1754685974195,2.46133154,4062.9,4062.0,2.46181966]
[1754685974361,3.827,4062.8,4061.9,5.46190206]
[1754685974561,3.827,4062.8,4061.9,6.83062227]
[1754685974760,3.827,4062.8,4062.3,2.46164809]
[1754685975192,3.827,4062.8,4062.4,2.46156931]
[1754685975400,3.827,4062.8,4062.4,0.1232]
[1754685975580,0.4319,4062.7,4062.4,0.1232]
[1754685977090,0.4319,4062.6,4062.4,0.1232]
[1754685977394,0.4319,4062.6,4062.2,3.1232]
[1754685977768,0.4319,4062.5,4062.2,0.1232]
[1754685977967,3.824,4062.4,4062.2,0.1232]
[1754685978509,3.824,4062.4,4062.2,3.1232]
[1754685978803,3.824,4062.4,4062.2,2.58491876]
[1754685978969,3.824,4062.4,4062.3,0.4855]
[1754685979168,3.824,4062.4,4062.3,5.94715965]
[1754685979395,0.1232,4063.0,4062.3,3.4855]
[1754685979693,3.822,4063.1,4062.4,0.9153]
[1754685979866,3.822,4063.1,4062.9,2.58449433]
[1754685980267,0.1232,4063.6,4063.1,2.46112157]
[1754685980497,0.1232,4063.6,4063.0,0.4855]
[1754685980498,0.1232,4063.6,4063.5,2.46093269]
[1754685980828,3.9482,4063.6,4063.5,2.46093269]
[1754685981202,3.9482,4063.6,4063.4,2.46098129]
[1754685981593,0.1232,4063.6,4063.5,2.46093269]
[1754685981799,3.823,4063.7,4063.6,2.46087213]
[1754685982106,3.827,4063.8,4063.7,5.46081157]
[1754685982314,0.4319,4064.7,4063.7,5.46081157]
[1754685982315,0.52846699,4064.6,4064.0,2.46062992]
[1754685982515,0.1232,4064.4,4064.0,2.46062992]